[Event "*** Titled Tuesday Blitz"]
[Site "Chess.com"]
[Date "2020.05.12"]
[Round "4"]
[White "Gareth-Bale11"]
[Black "Anna_ChessMate"]
[Result "1-0"]
[WhiteElo "2716"]
[BlackElo "2494"]
[TimeControl "180+1"]
[EndTime "10:37:43 PDT"]
[Termination "Gareth-Bale11 won by resignation"]

1. d4 {[%clk 0:03:00.9]} 1... Nf6 {[%clk 0:02:58.7]} 2. c4 {[%clk 0:03:00.6]}
2... g6 {[%clk 0:02:59.2]} 3. Nc3 {[%clk 0:03:00.3]} 3... d5 {[%clk 0:02:59.1]}
4. Bg5 {[%clk 0:02:54.4]} 4... Ne4 {[%clk 0:02:58.2]} 5. Bh4 {[%clk 0:02:53.7]}
5... Nxc3 {[%clk 0:02:58]} 6. bxc3 {[%clk 0:02:54.6]} 6... Bg7 {[%clk
0:02:57.9]} 7. e3 {[%clk 0:02:54.5]} 7... c6 {[%clk 0:02:58.1]} 8. Nf3 {[%clk
0:02:53]} 8... O-O {[%clk 0:02:58.5]} 9. Bd3 {[%clk 0:02:52.9]} 9... Re8 {[%clk
0:02:59]} 10. O-O {[%clk 0:02:52.8]} 10... Bg4 {[%clk 0:02:59.5]} 11. Rb1 {[%clk
0:02:51.5]} 11... b6 {[%clk 0:02:52.3]} 12. cxd5 {[%clk 0:02:50.1]} 12... cxd5
{[%clk 0:02:52.1]} 13. c4 {[%clk 0:02:46.9]} 13... Nc6 {[%clk 0:02:46.2]} 14. h3
{[%clk 0:02:43.7]} 14... Bf5 {[%clk 0:02:41]} 15. Bxf5 {[%clk 0:02:34.9]} 15...
gxf5 {[%clk 0:02:41.9]} 16. Qc2 {[%clk 0:02:35.1]} 16... dxc4 {[%clk 0:02:26.1]}
17. Qxf5 {[%clk 0:02:27.3]} 17... h6 {[%clk 0:01:40.3]} 18. d5 {[%clk
0:02:18.1]} 18... Na5 {[%clk 0:01:35.2]} 19. e4 {[%clk 0:02:11.7]} 19... e6
{[%clk 0:01:31.9]} 20. Qg4 {[%clk 0:02:05.9]} 20... f5 {[%clk 0:01:16.8]} 21.
exf5 {[%clk 0:01:59.1]} 21... exf5 {[%clk 0:01:17.7]} 22. Qxf5 {[%clk 0:01:55]}
22... Qc8 {[%clk 0:01:18.3]} 23. Qg6 {[%clk 0:01:54]} 23... c3 {[%clk
0:01:06.1]} 24. Nd4 {[%clk 0:01:42.1]} 24... Qd7 {[%clk 0:00:43]} 25. Nf5 {[%clk
0:01:39.8]} 25... Rf8 {[%clk 0:00:34.1]} 26. Ne7+ {[%clk 0:01:19.4]} 26... Kh8
{[%clk 0:00:33.9]} 27. Rfe1 {[%clk 0:01:20]} 27... Nc4 {[%clk 0:00:27]} 28. Re6
{[%clk 0:01:17.5]} 28... Rf4 {[%clk 0:00:16.8]} 29. Qh5 {[%clk 0:01:10.3]} 29...
Kh7 {[%clk 0:00:05.9]} 30. Rxh6+ {[%clk 0:01:06.7]} 30... Bxh6 {[%clk
0:00:05.7]} 31. Qg6+ {[%clk 0:01:06.9]} 1-0

[Event "*** Titled Tuesday Blitz"]
[Site "Chess.com"]
[Date "2020.05.12"]
[Round "4"]
[White "Piotrek1979"]
[Black "Shubinkirill2003"]
[Result "0-1"]
[WhiteElo "2338"]
[BlackElo "2588"]
[TimeControl "180+1"]
[EndTime "10:37:44 PDT"]
[Termination "Shubinkirill2003 won by resignation"]

1. e4 {[%clk 0:02:54.5]} 1... e6 {[%clk 0:02:59.7]} 2. d4 {[%clk 0:02:53.1]}
2... d5 {[%clk 0:02:59.5]} 3. Nd2 {[%clk 0:02:54]} 3... Be7 {[%clk 0:02:59.2]}
4. Ngf3 {[%clk 0:02:52.1]} 4... Nf6 {[%clk 0:02:59]} 5. Bd3 {[%clk 0:02:47.8]}
5... c5 {[%clk 0:02:58.1]} 6. exd5 {[%clk 0:02:46.3]} 6... exd5 {[%clk 0:02:59]}
7. dxc5 {[%clk 0:02:44.9]} 7... Bxc5 {[%clk 0:02:56.1]} 8. O-O {[%clk
0:02:44.3]} 8... O-O {[%clk 0:02:49.4]} 9. Nb3 {[%clk 0:02:44]} 9... Bb6 {[%clk
0:02:48.1]} 10. Bg5 {[%clk 0:02:44.4]} 10... h6 {[%clk 0:02:46.1]} 11. Bh4
{[%clk 0:02:43.3]} 11... Bg4 {[%clk 0:02:45.4]} 12. h3 {[%clk 0:02:42.1]} 12...
Bh5 {[%clk 0:02:43.5]} 13. g4 {[%clk 0:02:41.9]} 13... Bg6 {[%clk 0:02:43.3]}
14. Bxg6 {[%clk 0:02:41.6]} 14... fxg6 {[%clk 0:02:44.2]} 15. g5 {[%clk
0:02:03.5]} 15... Ne4 {[%clk 0:02:31.7]} 16. gxh6 {[%clk 0:02:03.2]} 16... g5
{[%clk 0:02:31.5]} 17. hxg7 {[%clk 0:02:03.1]} 17... Rf7 {[%clk 0:02:24]} 18.
Nxg5 {[%clk 0:01:21.9]} 18... Nxg5 {[%clk 0:02:18.2]} 19. Bxg5 {[%clk
0:00:48.8]} 19... Qxg5+ {[%clk 0:02:15.7]} 20. Kh1 {[%clk 0:00:49.3]} 20... Qf5
{[%clk 0:01:54.1]} 21. Qd3 {[%clk 0:00:19.1]} 21... Qxd3 {[%clk 0:01:51.2]} 22.
cxd3 {[%clk 0:00:20]} 22... Nc6 {[%clk 0:01:49.9]} 23. Rae1 {[%clk 0:00:18.5]}
23... Rxg7 {[%clk 0:01:44.1]} 24. f4 {[%clk 0:00:15.7]} 24... Rf8 {[%clk
0:01:41.7]} 25. f5 {[%clk 0:00:15.5]} 25... Rgf7 {[%clk 0:01:40.6]} 26. Rg1+
{[%clk 0:00:14.9]} 26... Kh7 {[%clk 0:01:36.8]} 27. Rg4 {[%clk 0:00:12.3]} 27...
Rxf5 {[%clk 0:01:30.2]} 28. Re6 {[%clk 0:00:11.9]} 28... Rf1+ {[%clk 0:01:22.9]}
29. Kh2 {[%clk 0:00:12]} 29... R8f2+ {[%clk 0:01:18.7]} 30. Kg3 {[%clk
0:00:11.1]} 30... Rg1+ {[%clk 0:01:13.6]} 31. Kh4 {[%clk 0:00:11.6]} 31... Bd8+
{[%clk 0:01:12.7]} 32. Kh5 {[%clk 0:00:11.4]} 32... Rf5+ {[%clk 0:01:11.4]} 0-1

[Event "*** Titled Tuesday Blitz"]
[Site "Chess.com"]
[Date "2020.05.12"]
[Round "4"]
[White "Egor_Pakhomov"]
[Black "Godzillator"]
[Result "0-1"]
[WhiteElo "2616"]
[BlackElo "2467"]
[TimeControl "180+1"]
[EndTime "10:37:46 PDT"]
[Termination "Godzillator won on time"]

1. d4 {[%clk 0:03:00.9]} 1... d5 {[%clk 0:02:59.6]} 2. Nf3 {[%clk 0:03:01.8]}
2... Nf6 {[%clk 0:02:59.1]} 3. c4 {[%clk 0:03:02.7]} 3... c6 {[%clk 0:02:59.5]}
4. Nc3 {[%clk 0:03:03.6]} 4... a6 {[%clk 0:02:59.6]} 5. Ne5 {[%clk 0:03:03]}
5... Nbd7 {[%clk 0:02:59.1]} 6. Nxd7 {[%clk 0:02:57.1]} 6... Qxd7 {[%clk
0:02:57.3]} 7. e3 {[%clk 0:02:45]} 7... b5 {[%clk 0:02:55.4]} 8. cxd5 {[%clk
0:02:33.1]} 8... cxd5 {[%clk 0:02:55.3]} 9. a4 {[%clk 0:02:33.2]} 9... b4 {[%clk
0:02:54.6]} 10. Nb1 {[%clk 0:02:33.6]} 10... e6 {[%clk 0:02:52]} 11. a5 {[%clk
0:02:32.1]} 11... Bd6 {[%clk 0:02:48.4]} 12. Nd2 {[%clk 0:02:32.5]} 12... O-O
{[%clk 0:02:47.9]} 13. Be2 {[%clk 0:02:30.5]} 13... Bb7 {[%clk 0:02:45]} 14. O-O
{[%clk 0:02:29.9]} 14... Bc6 {[%clk 0:02:44.7]} 15. Nb3 {[%clk 0:02:20]} 15...
Bb5 {[%clk 0:02:42]} 16. Bd2 {[%clk 0:02:19]} 16... Ne4 {[%clk 0:02:34.3]} 17.
f3 {[%clk 0:02:14]} 17... Nxd2 {[%clk 0:02:32.9]} 18. Qxd2 {[%clk 0:02:14.9]}
18... Bc4 {[%clk 0:02:25.4]} 19. Qc2 {[%clk 0:01:57.9]} 19... Rfc8 {[%clk
0:02:23.1]} 20. Rfc1 {[%clk 0:01:53.7]} 20... Qb5 {[%clk 0:02:16.2]} 21. Bd1
{[%clk 0:01:51.6]} 21... Rc7 {[%clk 0:02:14.9]} 22. Qf2 {[%clk 0:01:38.2]} 22...
Rac8 {[%clk 0:02:11.1]} 23. Nd2 {[%clk 0:01:32.8]} 23... Bd3 {[%clk 0:02:06.8]}
24. Rxc7 {[%clk 0:01:31.1]} 24... Rxc7 {[%clk 0:02:06.7]} 25. Ba4 {[%clk
0:01:31.2]} 25... Qxa5 {[%clk 0:02:02]} 26. e4 {[%clk 0:01:02.7]} 26... Bb5
{[%clk 0:01:55.2]} 27. e5 {[%clk 0:01:01.7]} 27... Bf8 {[%clk 0:01:49.2]} 28.
Nb3 {[%clk 0:01:00.9]} 28... Qb6 {[%clk 0:01:44.3]} 29. Bxb5 {[%clk 0:01:00.4]}
29... Qxb5 {[%clk 0:01:43.8]} 30. Qf1 {[%clk 0:01:00.7]} 30... Qxf1+ {[%clk
0:01:37.7]} 31. Kxf1 {[%clk 0:00:58.6]} 31... Rc2 {[%clk 0:01:36.8]} 32. Rxa6
{[%clk 0:00:44.1]} 32... Rxb2 {[%clk 0:01:36.7]} 33. Nc5 {[%clk 0:00:43.9]}
33... Bxc5 {[%clk 0:01:31.1]} 34. dxc5 {[%clk 0:00:44.8]} 34... g5 {[%clk
0:01:30.8]} 35. c6 {[%clk 0:00:40.9]} 35... Rc2 {[%clk 0:01:31]} 36. Rb6 {[%clk
0:00:41.1]} 36... b3 {[%clk 0:01:29.5]} 37. Rxb3 {[%clk 0:00:40.9]} 37... Rxc6
{[%clk 0:01:29.6]} 38. Kf2 {[%clk 0:00:41.5]} 38... Rc2+ {[%clk 0:01:27.6]} 39.
Kg3 {[%clk 0:00:40.9]} 39... Re2 {[%clk 0:01:27.5]} 0-1

[Event "*** Titled Tuesday Blitz"]
[Site "Chess.com"]
[Date "2020.05.12"]
[Round "4"]
[White "TERMINATOR_PC"]
[Black "PetrolulSah"]
[Result "1-0"]
[WhiteElo "2456"]
[BlackElo "2282"]
[TimeControl "180+1"]
[EndTime "10:37:47 PDT"]
[Termination "TERMINATOR_PC won by resignation"]

1. e4 {[%clk 0:03:00.9]} 1... e5 {[%clk 0:02:59.3]} 2. Nf3 {[%clk 0:03:00.9]}
2... Nc6 {[%clk 0:02:57.4]} 3. d4 {[%clk 0:03:01.4]} 3... exd4 {[%clk
0:02:56.8]} 4. Bc4 {[%clk 0:03:02]} 4... Nf6 {[%clk 0:02:54.7]} 5. Ng5 {[%clk
0:03:02.3]} 5... d5 {[%clk 0:02:52.4]} 6. exd5 {[%clk 0:03:02.4]} 6... Nxd5
{[%clk 0:02:44.4]} 7. O-O {[%clk 0:03:01.8]} 7... Be7 {[%clk 0:02:41.4]} 8. Nxf7
{[%clk 0:03:01.6]} 8... Kxf7 {[%clk 0:02:40.9]} 9. Qf3+ {[%clk 0:03:01.7]} 9...
Bf6 {[%clk 0:02:35.3]} 10. Bxd5+ {[%clk 0:03:01.2]} 10... Be6 {[%clk 0:02:34.8]}
11. Bxe6+ {[%clk 0:02:59.7]} 11... Kxe6 {[%clk 0:02:34.7]} 12. Re1+ {[%clk
0:02:53.8]} 12... Ne5 {[%clk 0:02:23.1]} 13. Bf4 {[%clk 0:02:44.5]} 13... Qd5
{[%clk 0:02:18]} 14. Bxe5 {[%clk 0:02:44.3]} 14... Bxe5 {[%clk 0:02:09.3]} 15.
Nd2 {[%clk 0:02:27.4]} 15... Rhf8 {[%clk 0:01:48.3]} 16. Qh3+ {[%clk 0:02:18.3]}
16... Kd6 {[%clk 0:01:43.9]} 17. Qxh7 {[%clk 0:02:03]} 17... Rh8 {[%clk
0:01:38.5]} 18. Qg6+ {[%clk 0:02:02.4]} 18... Kc5 {[%clk 0:01:12.4]} 19. b4+
{[%clk 0:01:25.2]} 19... Kxb4 {[%clk 0:01:07.4]} 20. Rab1+ {[%clk 0:01:19]}
20... Ka4 {[%clk 0:01:02.6]} 21. h3 {[%clk 0:00:29.5]} 21... Rh6 {[%clk
0:00:53.4]} 22. Qd3 {[%clk 0:00:25.8]} 22... a6 {[%clk 0:00:42.1]} 23. Nc4
{[%clk 0:00:20.6]} 1-0

[Event "*** Titled Tuesday Blitz"]
[Site "Chess.com"]
[Date "2020.05.12"]
[Round "4"]
[White "GameOverBro"]
[Black "Richarzard69"]
[Result "1-0"]
[WhiteElo "2491"]
[BlackElo "2265"]
[TimeControl "180+1"]
[EndTime "10:37:48 PDT"]
[Termination "GameOverBro won by resignation"]

1. e4 {[%clk 0:03:00.9]} 1... e6 {[%clk 0:02:59.8]} 2. d4 {[%clk 0:03:00.9]}
2... d5 {[%clk 0:02:59.2]} 3. Nd2 {[%clk 0:03:01.4]} 3... Nf6 {[%clk 0:02:58.1]}
4. e5 {[%clk 0:03:01.4]} 4... Nfd7 {[%clk 0:02:58.7]} 5. f4 {[%clk 0:03:02]}
5... c5 {[%clk 0:02:59.3]} 6. c3 {[%clk 0:03:02.2]} 6... Nc6 {[%clk 0:02:59.4]}
7. Ndf3 {[%clk 0:03:02.2]} 7... Qb6 {[%clk 0:02:59.3]} 8. a3 {[%clk 0:03:01]}
8... f6 {[%clk 0:02:56.5]} 9. Bd3 {[%clk 0:03:00]} 9... Be7 {[%clk 0:02:42.2]}
10. Ne2 {[%clk 0:02:57.5]} 10... O-O {[%clk 0:02:39.7]} 11. h4 {[%clk 0:02:53]}
11... cxd4 {[%clk 0:02:37.7]} 12. cxd4 {[%clk 0:02:53.3]} 12... fxe5 {[%clk
0:02:36.7]} 13. fxe5 {[%clk 0:02:54.2]} 13... Kh8 {[%clk 0:02:12.8]} 14. Bc2
{[%clk 0:02:46.3]} 14... Qd8 {[%clk 0:01:44.8]} 15. Qd3 {[%clk 0:02:43]} 15...
g6 {[%clk 0:01:35.1]} 16. h5 {[%clk 0:02:38]} 16... Rxf3 {[%clk 0:01:19.1]} 17.
gxf3 {[%clk 0:02:34.1]} 17... Ndxe5 {[%clk 0:01:11.7]} 18. dxe5 {[%clk
0:02:28.8]} 18... Nxe5 {[%clk 0:01:12.6]} 19. Qe3 {[%clk 0:02:04.8]} 19... Nc4
{[%clk 0:01:10]} 20. Qh6 {[%clk 0:01:50.3]} 20... Bf8 {[%clk 0:01:08.8]} 21. Qg5
{[%clk 0:01:42.7]} 21... Be7 {[%clk 0:01:08.1]} 22. Qg3 {[%clk 0:01:35.6]} 22...
g5 {[%clk 0:01:01.1]} 23. b3 {[%clk 0:01:27.5]} 23... Qa5+ {[%clk 0:00:30]} 24.
b4 {[%clk 0:01:17.2]} 24... Bxb4+ {[%clk 0:00:26.5]} 25. Kf1 {[%clk 0:01:17.6]}
25... Bd2 {[%clk 0:00:17.6]} 26. h6 {[%clk 0:01:09.6]} 26... Ne3+ {[%clk
0:00:16.4]} 27. Kg1 {[%clk 0:01:08.8]} 27... d4 {[%clk 0:00:12.6]} 28. Bxd2
{[%clk 0:01:06.8]} 28... Qc5 {[%clk 0:00:07.8]} 29. Bxe3 {[%clk 0:01:03.9]}
29... dxe3 {[%clk 0:00:08.5]} 30. Rd1 {[%clk 0:00:59.2]} 30... e5 {[%clk
0:00:04.9]} 31. Rd8+ {[%clk 0:00:57.7]} 1-0

[Event "*** Titled Tuesday Blitz"]
[Site "Chess.com"]
[Date "2020.05.12"]
[Round "4"]
[White "Bagirova"]
[Black "rst2003"]
[Result "1-0"]
[WhiteElo "2192"]
[BlackElo "2447"]
[TimeControl "180+1"]
[EndTime "10:37:48 PDT"]
[Termination "Bagirova won by resignation"]

1. d4 {[%clk 0:03:00.9]} 1... Nf6 {[%clk 0:02:59.6]} 2. Nf3 {[%clk 0:03:01.3]}
2... g6 {[%clk 0:02:59.9]} 3. Bf4 {[%clk 0:03:01.9]} 3... b6 {[%clk 0:02:58.7]}
4. e3 {[%clk 0:03:02.2]} 4... Bb7 {[%clk 0:02:59]} 5. Be2 {[%clk 0:03:02.8]}
5... d6 {[%clk 0:02:58.9]} 6. h3 {[%clk 0:03:02.5]} 6... Nbd7 {[%clk 0:02:59.2]}
7. O-O {[%clk 0:03:03]} 7... c5 {[%clk 0:02:59.3]} 8. c4 {[%clk 0:03:03.6]} 8...
Ne4 {[%clk 0:02:56.6]} 9. Nc3 {[%clk 0:02:59.9]} 9... Nxc3 {[%clk 0:02:56.2]}
10. bxc3 {[%clk 0:02:59.3]} 10... Bg7 {[%clk 0:02:57.1]} 11. Bh2 {[%clk
0:02:57.9]} 11... O-O {[%clk 0:02:56.5]} 12. a4 {[%clk 0:02:54.6]} 12... Nf6
{[%clk 0:02:45.9]} 13. Qc2 {[%clk 0:02:49.2]} 13... Be4 {[%clk 0:02:39.7]} 14.
Qb2 {[%clk 0:02:46.2]} 14... Rb8 {[%clk 0:02:32.6]} 15. d5 {[%clk 0:02:45.6]}
15... Bxf3 {[%clk 0:02:26.1]} 16. Bxf3 {[%clk 0:02:45]} 16... Nd7 {[%clk
0:02:23.8]} 17. e4 {[%clk 0:02:35.1]} 17... a6 {[%clk 0:02:12.1]} 18. Be2 {[%clk
0:02:33.5]} 18... Qc7 {[%clk 0:02:02.2]} 19. Rab1 {[%clk 0:02:24.2]} 19... Be5
{[%clk 0:01:38.7]} 20. f4 {[%clk 0:02:22.6]} 20... Bg7 {[%clk 0:01:37.8]} 21.
Qc2 {[%clk 0:02:21.8]} 21... f5 {[%clk 0:01:37]} 22. exf5 {[%clk 0:02:19.3]}
22... Rxf5 {[%clk 0:01:36.7]} 23. Bg4 {[%clk 0:02:16.4]} 23... Rff8 {[%clk
0:01:35.9]} 24. Rbe1 {[%clk 0:02:13.2]} 24... Nf6 {[%clk 0:01:35.7]} 25. Be6+
{[%clk 0:02:11.4]} 25... Kh8 {[%clk 0:01:35.6]} 26. f5 {[%clk 0:02:10.5]} 26...
g5 {[%clk 0:01:34.4]} 27. h4 {[%clk 0:02:10.3]} 27... gxh4 {[%clk 0:01:34]} 28.
Qf2 {[%clk 0:02:08.1]} 28... b5 {[%clk 0:01:31.1]} 29. axb5 {[%clk 0:02:02.4]}
29... axb5 {[%clk 0:01:32]} 30. cxb5 {[%clk 0:02:02.2]} 30... Rxb5 {[%clk
0:01:32.2]} 31. Qxh4 {[%clk 0:02:01.8]} 31... c4 {[%clk 0:01:32.5]} 32. Rf3
{[%clk 0:01:33.8]} 32... Nxd5 {[%clk 0:01:26.9]} 33. Rh3 {[%clk 0:01:33.8]}
33... h6 {[%clk 0:01:26.3]} 34. Bxd5 {[%clk 0:01:26.8]} 34... Rxd5 {[%clk
0:01:24.8]} 35. Bf4 {[%clk 0:01:27.2]} 35... Rf6 {[%clk 0:01:13.7]} 36. Bg5
{[%clk 0:01:15.2]} 36... Rdxf5 {[%clk 0:01:08]} 37. Bxf6 {[%clk 0:01:11.4]}
37... Rxf6 {[%clk 0:01:08.9]} 38. Rg3 {[%clk 0:01:03.6]} 38... e5 {[%clk
0:01:02.2]} 39. Re4 {[%clk 0:01:00.3]} 39... d5 {[%clk 0:01:00.2]} 40. Reg4
{[%clk 0:00:59.9]} 40... Bf8 {[%clk 0:00:37.9]} 41. Qxf6+ {[%clk 0:00:54.8]} 1-0

[Event "*** Titled Tuesday Blitz"]
[Site "Chess.com"]
[Date "2020.05.12"]
[Round "4"]
[White "Shivagami"]
[Black "etesungam"]
[Result "0-1"]
[WhiteElo "2206"]
[BlackElo "2423"]
[TimeControl "180+1"]
[EndTime "10:37:50 PDT"]
[Termination "etesungam won by resignation"]

1. d4 {[%clk 0:02:59.7]} 1... Nf6 {[%clk 0:02:58.2]} 2. c4 {[%clk 0:02:58]} 2...
e6 {[%clk 0:02:58.4]} 3. Nc3 {[%clk 0:02:56.3]} 3... d5 {[%clk 0:02:57.4]} 4.
cxd5 {[%clk 0:02:56.3]} 4... exd5 {[%clk 0:02:57.1]} 5. Bg5 {[%clk 0:02:56.1]}
5... c6 {[%clk 0:02:55.7]} 6. e3 {[%clk 0:02:49.1]} 6... Be7 {[%clk 0:02:54.9]}
7. Qc2 {[%clk 0:02:48.9]} 7... O-O {[%clk 0:02:35.3]} 8. Bd3 {[%clk 0:02:49]}
8... Nbd7 {[%clk 0:02:35.6]} 9. f3 {[%clk 0:02:48.9]} 9... g6 {[%clk 0:02:30.1]}
10. Nge2 {[%clk 0:02:47.6]} 10... c5 {[%clk 0:02:28]} 11. dxc5 {[%clk
0:02:13.3]} 11... Nxc5 {[%clk 0:02:27.9]} 12. O-O {[%clk 0:02:12.7]} 12... Nxd3
{[%clk 0:02:27]} 13. Qxd3 {[%clk 0:02:12.8]} 13... Bf5 {[%clk 0:02:24.8]} 14. e4
{[%clk 0:01:58.8]} 14... dxe4 {[%clk 0:02:23.6]} 15. Qxd8 {[%clk 0:01:57.7]}
15... Bxd8 {[%clk 0:02:19.2]} 16. Bxf6 {[%clk 0:01:53.2]} 16... Bxf6 {[%clk
0:01:41.3]} 17. fxe4 {[%clk 0:01:43.8]} 17... Bxc3 {[%clk 0:01:39.5]} 18. exf5
{[%clk 0:01:37]} 18... Be5 {[%clk 0:01:34.1]} 19. fxg6 {[%clk 0:01:35.9]} 19...
hxg6 {[%clk 0:01:34.6]} 20. Rad1 {[%clk 0:01:21.4]} 20... Rac8 {[%clk
0:01:34.1]} 21. Rd2 {[%clk 0:01:19.2]} 21... Rc7 {[%clk 0:01:26.7]} 22. Rfd1
{[%clk 0:01:15.2]} 22... Kg7 {[%clk 0:01:22.1]} 23. Nd4 {[%clk 0:01:06.2]} 23...
Re8 {[%clk 0:01:13.9]} 24. Nb5 {[%clk 0:01:02.5]} 24... Rc5 {[%clk 0:01:11.6]}
25. Nxa7 {[%clk 0:00:27]} 25... Ra5 {[%clk 0:01:02.7]} 0-1

[Event "*** Titled Tuesday Blitz"]
[Site "Chess.com"]
[Date "2020.05.12"]
[Round "4"]
[White "hedgehog280"]
[Black "Khamrakulov_Djurabek"]
[Result "0-1"]
[WhiteElo "2612"]
[BlackElo "2821"]
[TimeControl "180+1"]
[EndTime "10:37:51 PDT"]
[Termination "Khamrakulov_Djurabek won by resignation"]

1. c4 {[%clk 0:03:00.9]} 1... Nf6 {[%clk 0:02:59.3]} 2. Nc3 {[%clk 0:03:00.7]}
2... e5 {[%clk 0:02:59.2]} 3. Nf3 {[%clk 0:03:00.7]} 3... Nc6 {[%clk 0:02:58.9]}
4. e4 {[%clk 0:02:59.9]} 4... Bb4 {[%clk 0:02:55.3]} 5. d3 {[%clk 0:02:59.2]}
5... d6 {[%clk 0:02:53.5]} 6. a3 {[%clk 0:02:59.1]} 6... Bxc3+ {[%clk
0:02:53.2]} 7. bxc3 {[%clk 0:02:59.2]} 7... O-O {[%clk 0:02:52.9]} 8. g3 {[%clk
0:02:59.7]} 8... a6 {[%clk 0:02:47.1]} 9. Bg2 {[%clk 0:02:59.4]} 9... b5 {[%clk
0:02:47.2]} 10. cxb5 {[%clk 0:02:58.1]} 10... axb5 {[%clk 0:02:47.5]} 11. O-O
{[%clk 0:02:58.4]} 11... h6 {[%clk 0:02:44.6]} 12. Be3 {[%clk 0:02:36.1]} 12...
Ra4 {[%clk 0:02:38.1]} 13. Qb3 {[%clk 0:02:30.3]} 13... Ba6 {[%clk 0:02:32.3]}
14. Bd2 {[%clk 0:02:00.5]} 14... Qd7 {[%clk 0:02:20.5]} 15. Rfe1 {[%clk
0:01:53.8]} 15... Ra8 {[%clk 0:02:13.6]} 16. Nh4 {[%clk 0:01:37.6]} 16... Qe6
{[%clk 0:02:02.6]} 17. Qb2 {[%clk 0:01:35]} 17... Na5 {[%clk 0:01:59.8]} 18. Nf5
{[%clk 0:01:33.5]} 18... Nb3 {[%clk 0:01:56.7]} 19. Bh3 {[%clk 0:01:15.7]} 19...
Kf8 {[%clk 0:01:56.1]} 20. Ra2 {[%clk 0:01:02.1]} 20... Nxd2 {[%clk 0:01:48.9]}
21. Qxd2 {[%clk 0:01:01.3]} 21... Bc8 {[%clk 0:01:49]} 22. Qb2 {[%clk
0:00:57.3]} 22... g6 {[%clk 0:01:46.8]} 23. Qd2 {[%clk 0:00:56.6]} 23... Ng8
{[%clk 0:01:39.1]} 24. Nxd6 {[%clk 0:00:36]} 24... Qxd6 {[%clk 0:01:34.6]} 25.
Bxc8 {[%clk 0:00:35.6]} 25... Rxc8 {[%clk 0:01:35.5]} 26. Rb2 {[%clk 0:00:34.2]}
26... c6 {[%clk 0:01:34.9]} 27. d4 {[%clk 0:00:33.7]} 27... exd4 {[%clk
0:01:33.2]} 28. e5 {[%clk 0:00:34.1]} 28... Qd5 {[%clk 0:01:31.1]} 29. e6 {[%clk
0:00:34.2]} 29... fxe6 {[%clk 0:01:26.2]} 30. Qf4+ {[%clk 0:00:34.2]} 30... Kg7
{[%clk 0:01:25.6]} 31. Rbe2 {[%clk 0:00:33.2]} 31... Rf8 {[%clk 0:01:21.8]} 32.
Qc7+ {[%clk 0:00:30]} 32... Rf7 {[%clk 0:01:21.8]} 33. Qc8 {[%clk 0:00:30.1]}
33... d3 {[%clk 0:01:06.3]} 34. Rxe6 {[%clk 0:00:27.3]} 34... d2 {[%clk
0:01:06.3]} 35. Rd1 {[%clk 0:00:27]} 35... Ne7 {[%clk 0:01:05.5]} 36. Qe8 {[%clk
0:00:09.2]} 36... Qxe6 {[%clk 0:01:03.4]} 0-1

[Event "*** Titled Tuesday Blitz"]
[Site "Chess.com"]
[Date "2020.05.12"]
[Round "4"]
[White "murtas73"]
[Black "Aureliano-Buendia"]
[Result "1-0"]
[WhiteElo "2609"]
[BlackElo "2409"]
[TimeControl "180+1"]
[EndTime "10:37:51 PDT"]
[Termination "murtas73 won by resignation"]

1. d4 {[%clk 0:03:00.9]} 1... d5 {[%clk 0:02:59.4]} 2. c4 {[%clk 0:03:01.1]}
2... c6 {[%clk 0:02:56.6]} 3. Nc3 {[%clk 0:03:00.8]} 3... Nf6 {[%clk 0:02:56.7]}
4. e3 {[%clk 0:03:01.4]} 4... a6 {[%clk 0:02:56.4]} 5. Nf3 {[%clk 0:03:01.3]}
5... b5 {[%clk 0:02:56.1]} 6. c5 {[%clk 0:03:01.3]} 6... Bg4 {[%clk 0:02:50.7]}
7. Qb3 {[%clk 0:02:59]} 7... Nbd7 {[%clk 0:02:47.1]} 8. a4 {[%clk 0:02:58.3]}
8... Bxf3 {[%clk 0:02:42.5]} 9. gxf3 {[%clk 0:02:56.3]} 9... e5 {[%clk 0:02:40]}
10. Qa3 {[%clk 0:02:52]} 10... Rb8 {[%clk 0:02:30.2]} 11. axb5 {[%clk
0:02:50.8]} 11... axb5 {[%clk 0:02:29.9]} 12. Qa6 {[%clk 0:02:48.1]} 12... Qc7
{[%clk 0:02:06.7]} 13. Bd2 {[%clk 0:02:45.9]} 13... exd4 {[%clk 0:01:52]} 14.
exd4 {[%clk 0:02:44.7]} 14... Be7 {[%clk 0:01:52.1]} 15. Qa5 {[%clk 0:02:39]}
15... Qc8 {[%clk 0:01:47.4]} 16. Bh3 {[%clk 0:02:37.1]} 16... O-O {[%clk
0:01:45.6]} 17. O-O {[%clk 0:02:35.7]} 17... Bd8 {[%clk 0:01:42.6]} 18. Qa6
{[%clk 0:02:33.6]} 18... Qc7 {[%clk 0:01:41.4]} 19. Na2 {[%clk 0:02:27.4]} 19...
Nh5 {[%clk 0:01:26.5]} 20. Nb4 {[%clk 0:02:27.1]} 20... Rc8 {[%clk 0:01:26.3]}
21. Qxc6 {[%clk 0:02:20.8]} 21... Qxc6 {[%clk 0:01:05]} 22. Nxc6 {[%clk
0:02:21.7]} 22... f5 {[%clk 0:01:00.9]} 23. Nb4 {[%clk 0:02:18.4]} 23... Bf6
{[%clk 0:00:59.2]} 24. Nxd5 {[%clk 0:02:16.9]} 24... Bxd4 {[%clk 0:00:58.6]} 25.
Ne7+ {[%clk 0:02:16.8]} 25... Kf7 {[%clk 0:00:54.3]} 26. Nxc8 {[%clk 0:02:17.7]}
26... Rxc8 {[%clk 0:00:54.8]} 27. Bxf5 {[%clk 0:02:16.2]} 27... Nhf6 {[%clk
0:00:53.6]} 28. Ra7 {[%clk 0:02:12]} 28... Bxc5 {[%clk 0:00:49]} 29. Bxd7 {[%clk
0:02:05.3]} 29... Rd8 {[%clk 0:00:43.9]} 30. Rb7 {[%clk 0:02:02.7]} 30... Rxd7
{[%clk 0:00:44]} 31. Rxd7+ {[%clk 0:02:01.8]} 31... Nxd7 {[%clk 0:00:44.3]} 32.
Be3 {[%clk 0:02:02.5]} 32... Be7 {[%clk 0:00:44.2]} 33. Ra1 {[%clk 0:01:59.5]}
33... Ne5 {[%clk 0:00:44]} 34. Ra5 {[%clk 0:01:56.1]} 34... Nxf3+ {[%clk
0:00:41.9]} 35. Kg2 {[%clk 0:01:55.6]} 35... Ne1+ {[%clk 0:00:42.4]} 36. Kf1
{[%clk 0:01:55.1]} 36... Nf3 {[%clk 0:00:41.5]} 37. Rxb5 {[%clk 0:01:54]} 37...
Nxh2+ {[%clk 0:00:41.7]} 38. Ke2 {[%clk 0:01:54.2]} 38... Ng4 {[%clk 0:00:41]}
39. Bc5 {[%clk 0:01:53.2]} 39... Bf6 {[%clk 0:00:40.8]} 40. b4 {[%clk
0:01:50.6]} 40... h5 {[%clk 0:00:40.7]} 41. f3 {[%clk 0:01:46]} 41... Ne5 {[%clk
0:00:40]} 42. Bd4 {[%clk 0:01:42.6]} 42... Ng6 {[%clk 0:00:35.9]} 43. Bxf6
{[%clk 0:01:40.7]} 43... gxf6 {[%clk 0:00:34.7]} 44. Rc5 {[%clk 0:01:37.8]}
44... Ke6 {[%clk 0:00:34.5]} 45. b5 {[%clk 0:01:37.1]} 45... Kd6 {[%clk
0:00:34.6]} 46. Rc1 {[%clk 0:01:33.7]} 46... h4 {[%clk 0:00:34.3]} 47. b6 {[%clk
0:01:33.3]} 47... Ne5 {[%clk 0:00:34.7]} 48. b7 {[%clk 0:01:32.3]} 48... Nd7
{[%clk 0:00:35]} 49. Rd1+ {[%clk 0:01:31.8]} 1-0